[Event "50th La Roda Open 2024"]
[Site "La Roda"]
[Date "2024.03.27"]
[Round "1.11"]
[White "Goni Sierro, Jon"]
[Black "Admiraal, Miguoel"]
[Result "0-1"]
[ECO "B10"]
[WhiteElo "1866"]
[BlackElo "2471"]
[Annotator "TA"]
[PlyCount "190"]
[EventDate "2024.03.27"]
[EventType "swiss"]
[EventCountry "ESP"]
[SourceTitle "playchess.com"]
[Source "ChessBase"]
[SourceQuality "1"]
[TimeControl "5400+30"]

{[%evp 27,190,0,0,2,10,0,0,0,4,0,0,-24,-26,-41,-39,-50,0,0,-6,-3,0,-40,-47,-37,-27,-70,-43,-56,-65,-59,-55,-217,0,-101,-99,-93,-89,-89,-96,-99,-100,-96,-13,-14,-14,-28,0,-55,-43,-64,-18,-119,-113,-119,-112,-101,-65,-65,-66,-66,-64,-66,-43,-44,-44,-50,-29,-53,-25,-25,-6,-50,-50,-58,-50,-50,0,-60,-50,-56,-53,-62,0,-59,-55,-55,-55,-55,-55,-57,-56,-60,-56,-55,-47,-49,-47,-47,-47,-47,-29,-28,-11,-67,-67,-68,-68,-84,-75,-78,-75,-195,-195,-195,-195,-195,-195,-201,-208,-192,-200,-214,-188,-313,-306,-370,-302,-626,-135,-125,0,-1380,-1425,-916,-1177,-29966,-29968,-29968,-29969,-29968,-29969,-29970,-29972,-29972,-29973,-29973,-29969,-29972,-29973,-29976,-29977,-29976,-29977,-29977,-29978,-29978,-29979,-29978,-29979,-29982,-29978,-29984,-29985,-29986,-29987]} 1. e4 {[%emt 0:00:03]} c6 {[%emt 0:00:06]} 2. d3 {[%emt 0:00:11]} d5 {[%emt 0:00:05]} 3. Nd2 {[%emt 0:00:07]} e5 {[%emt 0:00:13]} 4. Ngf3 {[%emt 0:00:16]} Bd6 {[%emt 0:00:07]} 5. g3 {[%emt 0:00:45]} Nf6 {[%emt 0:00:10]} 6. Bg2 {[%emt 0:00:58]} O-O {[%emt 0:00:06]} 7. O-O {[%emt 0:00:53]} Re8 {[%emt 0:00:04]} 8. Re1 {[%emt 0:01:39]} a5 {[%emt 0:00:13] B10: Caro-Kann-Verteidigung.} 9. c3 {[%emt 0:01:48]} Na6 {[%emt 0:01:33]} 10. d4 {[%emt 0:07:05]} dxe4 {[%emt 0:19:12]} 11. Nxe4 {[%emt 0:01:33]} Nxe4 {[%emt 0:01:29]} 12. Rxe4 {[%emt 0:00:21]} Bf5 {[%emt 0:03:42]} 13. Re1 {[%emt 0:01:34]} exd4 {[%emt 0:03:58]} 14. Nxd4 {[%emt 0:03:03]} Rxe1+ {[%emt 0:01:03]} 15. Qxe1 {[%emt 0:00:19]} Bg6 {[%emt 0:00:18]} 16. Be3 {[%emt 0:08:07]} Nc5 $146 {[%emt 0:01:17]} ({Predecessor:} 16... Qe7 17. Rd1 Nc5 18. Qe2 Bc7 19. h4 h5 20. Bf3 Re8 21. Bxh5 Bxg3 22. Bxg6 fxg6 {1-0 Popovic,P (2532)-Lehner,O (2437) AUT-chT 0102 2001 (5.2)}) 17. Rd1 {[%emt 0:03:15]} Qf6 {[%emt 0:06:25]} 18. Qd2 {[%emt 0:08:38]} Ne4 {[%emt 0:05:02]} 19. Bxe4 {[%emt 0:05:12]} Bxe4 {[%emt 0:00:06]} 20. f3 {[%emt 0:00:07]} Bd5 $1 {[%emt 0:02:05]} (20... Bxf3 $2 {zu gefräßig.} 21. Rf1 $18) 21. b3 {[%emt 0:02:29]} Re8 {[%emt 0:09:34]} (21... Bxf3 $2 {ist das falsche Schlagen.} 22. Rf1 $18) (21... b5 $1 $15) 22. c4 {[%emt 0:03:40]} Bb4 {[%emt 0:00:07]} (22... Bxf3 $2 {verliert.} 23. Bg5 $18) 23. Qf2 {[%emt 0:01:02]} Be6 {[%emt 0:01:08]} 24. Nc2 {[%emt 0:03:34]} Bf8 {[%emt 0:01:34]} 25. Bd4 {[%emt 0:01:27]} Qg6 {[%emt 0:02:08]} 26. a4 {[%emt 0:07:09]} h5 {[%emt 0:00:52]} 27. Bb6 {[%emt 0:06:10]} Bh3 {[%emt 0:01:39]} 28. Ne3 {[%emt 0:03:07]} Bb4 {[%emt 0:06:10]} 29. Nc2 $2 {[%emt 0:08:28] [#]} (29. Bd4 $15) 29... Bf8 $2 {[%emt 0:10:47]} (29... c5 $1 $19 30. Bc7 Bc3) 30. Bxa5 {[%emt 0:02:24]} (30. Ne3 $1 $11) 30... Bc5 $1 $17 {[%emt 0:01:59]} 31. Nd4 {[%emt 0:02:06]} Bxd4 {[%emt 0:04:56]} 32. Qxd4 {[%emt 0:01:07]} Qc2 {[%emt 0:00:10]} 33. Qd2 {[%emt 0:02:53]} Qxb3 {[%emt 0:00:20]} 34. Bc3 {[%emt 0:00:32] [#]} Qxc4 {[%emt 0:07:43]} ({Günstiger ist} 34... f6 $1 $17 35. a5 Qxc4) 35. Bxg7 $1 $11 {[%emt 0:04:54]} Qe2 {[%emt 0:04:01]} 36. Bc3 {[%emt 0:01:50]} Qxd2 {[%emt 0:01:33]} (36... Kh7 {wäre vielleicht verwirrender.} 37. f4 Qxd2 38. Rxd2 Re3) 37. Bxd2 {[%emt 0:02:18]} ({Vorzuziehen ist} 37. Rxd2 $11 Re3 38. Rd8+ Kh7 39. Rh8+ Kg6 40. Rg8+ Kf5 41. Rh8) 37... Re2 $15 {[%emt 0:00:21]} 38. a5 {[%emt 0:00:55]} c5 {[%emt 0:01:16]} (38... Rg2+ $15 39. Kh1 Rf2) 39. Bc3 {[%emt 0:01:37]} (39. Bf4 $11) 39... Rg2+ $17 {[%emt 0:00:16]} 40. Kh1 {[%emt 0:00:14]} Rc2 {[%emt 0:00:12]} 41. Be5 {[%emt 0:01:07]} Bg2+ {[%emt 0:01:48]} 42. Kg1 {[%emt 0:00:27]} Bxf3 {[%emt 0:00:07]} 43. Rd3 {[%emt 0:01:08]} Be4 {[%emt 0:05:12]} 44. Rc3 {[%emt 0:01:04]} Rg2+ {[%emt 0:00:03]} 45. Kf1 {[%emt 0:00:14]} Rxh2 {[%emt 0:00:28]} 46. Rxc5 {[%emt 0:00:09]} Ra2 {[%emt 0:01:01]} 47. Ke1 {[%emt 0:00:54]} Kh7 {[%emt 0:00:34]} 48. Bf4 {[%emt 0:00:35]} Bf3 {[%emt 0:00:13]} 49. Kf1 {[%emt 0:00:47]} Kg6 {[%emt 0:00:32]} 50. Ke1 {[%emt 0:00:26]} Kf6 {[%emt 0:00:35]} 51. Kf1 {[%emt 0:00:21]} Kg6 {[%emt 0:00:18]} 52. Ke1 {[%emt 0:00:05]} f6 {[%emt 0:00:08]} 53. Kf1 {[%emt 0:00:14]} Be4 {[%emt 0:00:26]} 54. Ke1 {[%emt 0:00:25]} Bf3 {[%emt 0:00:36]} 55. Kf1 $1 {[%emt 0:00:07]} Kf7 {[%emt 0:00:17]} 56. Ke1 {[%emt 0:00:08]} Ke6 {[%emt 0:00:06]} 57. Kf1 {[%emt 0:00:29]} Ra4 {[%emt 0:00:41]} 58. Kf2 {[%emt 0:00:37]} Bd5 {[%emt 0:00:01]} 59. Bc7 {[%emt 0:01:01]} Ra3 {[%emt 0:00:09]} 60. Ke2 {[%emt 0:01:21]} f5 {[%emt 0:01:53]} 61. Kf2 {[%emt 0:00:36]} Be4 {[%emt 0:00:55]} 62. Ke2 {[%emt 0:00:29]} Kf6 {[%emt 0:00:19]} 63. Bd8+ {[%emt 0:03:32]} Kg6 {[%emt 0:00:02]} 64. Bh4 {[%emt 0:00:31]} Kf7 {[%emt 0:00:38]} 65. Kd2 {[%emt 0:00:43]} ({Besser ist} 65. Re5 $1 $11) 65... Ke6 $15 {[%emt 0:00:23]} 66. Kc1 {[%emt 0:00:45]} Ra2 {[%emt 0:01:29]} 67. Bg5 {[%emt 0:00:57]} Ra4 {[%emt 0:00:23]} 68. Kd2 {[%emt 0:00:42]} Bd5 {[%emt 0:00:10]} 69. Ke3 {[%emt 0:00:30]} (69. Rb5 $17) 69... Ra3+ $19 {[%emt 0:00:15]} 70. Kf2 {[%emt 0:00:34]} Rf3+ {[%emt 0:00:10]} 71. Ke2 {[%emt 0:00:18]} Rxg3 {[%emt 0:00:14]} 72. Bf4 {[%emt 0:00:15]} Ra3 {[%emt 0:00:26]} 73. Rc8 {[%emt 0:01:04]} Rxa5 {[%emt 0:00:26]} 74. Rh8 {[%emt 0:00:13]} Ra4 {[%emt 0:00:58]} 75. Be3 {[%emt 0:00:45]} (75. Rh6+ $142 Kf7 76. Bg3) 75... f4 $19 {[%emt 0:00:39]} 76. Rh6+ {[%emt 0:00:28]} Kf7 {[%emt 0:00:30]} 77. Bd2 $2 {[%emt 0:00:20]} (77. Bg1) 77... Bc4+ $2 {[%emt 0:00:45]} (77... f3+ $19 {ist viel giftiger.} 78. Kf1 Ra2) 78. Kf3 $17 {[%emt 0:00:30]} Bd5+ {[%emt 0:00:26]} (78... Bd3 $17 {Zielt auf ...Be4+ ab.} 79. Rh8 Bg6) 79. Kf2 $2 {[%emt 0:00:36][%mdl 8192]} (79. Ke2 $11 f3+ 80. Kf1) 79... Ra2 $19 {[%emt 0:00:17]} 80. Ke1 {[%emt 0:00:11]} f3 {[%emt 0:00:52]} 81. Rxh5 {[%emt 0:00:15]} f2+ {[%emt 0:00:26]} 82. Kxf2 {[%emt 0:00:06]} Rxd2+ {[%emt 0:00:05]} 83. Ke3 {[%emt 0:00:17]} Rd1 {[%emt 0:00:08]} 84. Ke2 {[%emt 0:00:15]} Rd4 {[%emt 0:00:13]} 85. Ke3 {[%emt 0:00:11]} Re4+ {[%emt 0:00:11]} 86. Kd3 {[%emt 0:00:04]} Bc6 {[%emt 0:00:21]} 87. Rc5 {[%emt 0:00:17]} Re6 {[%emt 0:00:07]} 88. Kc4 {[%emt 0:00:16]} Ke7 {[%emt 0:00:05]} 89. Rh5 {[%emt 0:00:16]} Kd6 {[%emt 0:00:06]} 90. Kb4 {[%emt 0:00:14]} Re4+ {[%emt 0:00:10]} 91. Kc3 {[%emt 0:00:29]} b5 {[%emt 0:00:13]} 92. Kd3 {[%emt 0:00:35]} Rg4 {[%emt 0:00:06]} 93. Kc3 {[%emt 0:00:06]} Bd5 {[%emt 0:00:14]} 94. Rh2 {[%emt 0:00:12]} Kc5 {[%emt 0:00:12]} 95. Kc2 {[%emt 0:00:18]} Rg2+ {[%emt 0:00:10]} 0-1

[Event "50th La Roda Open 2024"]
[Site "La Roda"]
[Date "2024.03.27"]
[Round "1.12"]
[White "Martinez Ramirez, Lennis"]
[Black "Ha, Yihan"]
[Result "1-0"]
[ECO "D32"]
[WhiteElo "2450"]
[BlackElo "1865"]
[Annotator "RC"]
[PlyCount "93"]
[EventDate "2024.03.27"]
[EventType "swiss"]
[EventCountry "ESP"]
[SourceTitle "playchess.com"]
[Source "ChessBase"]
[SourceQuality "1"]
[TimeControl "5400+30"]

1. Nf3 {[%emt 0:00:01]} Nf6 {[%emt 0:00:09]} 2. c4 {[%emt 0:00:07]} e6 {[%emt 0:00:10]} 3. b3 {[%emt 0:03:19]} d5 {[%emt 0:00:51]} 4. Bb2 {[%emt 0:00:05]} Be7 {[%emt 0:02:11]} 5. e3 {[%emt 0:00:15]} c5 {[%emt 0:00:40]} 6. cxd5 {[%emt 0:00:08]} exd5 {[%emt 0:01:21]} 7. d4 {[%emt 0:01:05]} O-O {[%emt 0:04:45]} 8. Be2 {[%emt 0:00:09]} Bf5 {[%emt 0:04:27]} 9. O-O {[%emt 0:00:15]} Nc6 {[%emt 0:01:55]} 10. Nc3 {[%emt 0:03:53]} Rc8 {[%emt 0:04:42]} 11. Rc1 {[%emt 0:01:36]} cxd4 {[%emt 0:10:37]} 12. Nxd4 {[%emt 0:00:46]} Nxd4 {[%emt 0:01:50]} 13. Qxd4 {[%emt 0:00:05]} Bc5 {[%emt 0:01:14]} 14. Qf4 {[%emt 0:00:57]} Be6 {[%emt 0:03:43]} 15. Nb5 {[%emt 0:00:09]} a6 {[%emt 0:06:25]} 16. Nd4 {[%emt 0:02:53]} Bd6 {[%emt 0:02:49]} 17. Nxe6 {[%emt 0:02:39]} Rxc1 {[%emt 0:01:09]} 18. Rxc1 {[%emt 0:02:06]} fxe6 {[%emt 0:00:19]} 19. Qh4 {[%emt 0:02:15]} Ne4 {[%emt 0:02:43]} 20. Qxd8 {[%emt 0:06:48]} Rxd8 {[%emt 0:00:06]} 21. g4 {[%emt 0:03:19]} Rf8 {[%emt 0:03:42]} 22. f3 {[%emt 0:00:09]} Nc5 {[%emt 0:01:21]} 23. h4 {[%emt 0:04:46]} Kf7 {[%emt 0:04:39]} 24. Kg2 {[%emt 0:08:33]} Nd7 {[%emt 0:01:08]} 25. f4 {[%emt 0:01:32]} g6 {[%emt 0:08:04]} 26. g5 {[%emt 0:06:45]} Bc5 {[%emt 0:03:06]} 27. Rc3 {[%emt 0:11:52]} Ke7 {[%emt 0:02:53]} 28. Kg3 {[%emt 0:02:47]} Kd6 {[%emt 0:02:10]} 29. Rd3 {[%emt 0:00:42]} Bb4 {[%emt 0:03:28]} 30. a3 {[%emt 0:01:01]} Be1+ {[%emt 0:02:24]} 31. Kg4 {[%emt 0:00:05]} Rc8 {[%emt 0:02:50]} 32. Rd1 {[%emt 0:01:22]} Ba5 {[%emt 0:00:50]} 33. Bd3 {[%emt 0:01:41]} Nc5 {[%emt 0:01:44]} 34. Bc2 {[%emt 0:00:10]} Nd7 {[%emt 0:08:50]} 35. Bb1 {[%emt 0:00:24]} Bb6 {[%emt 0:00:54]} 36. e4 {[%emt 0:00:09]} d4 {[%emt 0:04:12]} 37. e5+ {[%emt 0:02:55]} Ke7 {[%emt 0:00:46]} 38. h5 {[%emt 0:00:28]} Kf7 {[%emt 0:01:42]} 39. Bxd4 {[%emt 0:00:38]} Bxd4 {[%emt 0:00:13]} 40. Rxd4 {[%emt 0:00:18]} Nf8 {[%emt 0:00:28]} 41. a4 {[%emt 0:04:25]} Rc7 {[%emt 0:02:15]} 42. a5 {[%emt 0:02:20]} Nd7 {[%emt 0:01:07]} 43. Be4 {[%emt 0:00:18]} Nc5 {[%emt 0:00:34]} 44. Rc4 {[%emt 0:00:21]} Rc8 {[%emt 0:00:33]} 45. hxg6+ {[%emt 0:01:02]} hxg6 {[%emt 0:00:06]} 46. b4 {[%emt 0:00:07]} Nxe4 {[%emt 0:00:22]} 47. Rxc8 {[%emt 0:00:09]} 1-0

[Event "50th La Roda Open 2024"]
[Site "La Roda"]
[Date "2024.03.27"]
[Round "1.13"]
[White "Hidalgo Arellano, Patricio"]
[Black "Sanchez Alvarez, Roberto Carlos"]
[Result "0-1"]
[ECO "B31"]
[WhiteElo "1861"]
[BlackElo "2407"]
[Annotator "RC"]
[PlyCount "48"]
[EventDate "2024.03.27"]
[EventType "swiss"]
[EventCountry "ESP"]
[SourceTitle "playchess.com"]
[Source "ChessBase"]
[SourceQuality "1"]
[TimeControl "5400+30"]

1. e4 {[%emt 0:00:16]} c5 {[%emt 0:00:27]} 2. Nf3 {[%emt 0:00:10]} Nc6 {[%emt 0:01:14]} 3. Bb5 {[%emt 0:00:22]} g6 {[%emt 0:00:39]} 4. Bxc6 {[%emt 0:00:24]} bxc6 {[%emt 0:00:40]} 5. O-O {[%emt 0:00:36]} Bg7 {[%emt 0:00:11]} 6. c3 {[%emt 0:00:21]} Nf6 {[%emt 0:06:59]} 7. Re1 {[%emt 0:00:28]} O-O {[%emt 0:01:05]} 8. d4 {[%emt 0:00:38]} Qb6 {[%emt 0:03:50]} 9. Qb3 {[%emt 0:09:56]} d6 {[%emt 0:05:27]} 10. Na3 {[%emt 0:15:47]} Bg4 {[%emt 0:15:43]} 11. Qxb6 {[%emt 0:14:37]} axb6 {[%emt 0:00:15]} 12. e5 {[%emt 0:00:34]} Nd5 {[%emt 0:02:30]} 13. exd6 {[%emt 0:04:26]} exd6 {[%emt 0:00:30]} 14. Be3 {[%emt 0:00:21]} Bxf3 {[%emt 0:05:49]} 15. gxf3 {[%emt 0:00:05]} Nxc3 {[%emt 0:00:21]} 16. Nc4 {[%emt 0:00:51]} Nd5 {[%emt 0:12:09]} 17. Red1 {[%emt 0:08:49]} Rfd8 {[%emt 0:02:02]} 18. dxc5 {[%emt 0:05:56]} dxc5 {[%emt 0:01:03]} 19. a4 {[%emt 0:05:53]} b5 {[%emt 0:05:02]} 20. Rxd5 {[%emt 0:17:18]} cxd5 {[%emt 0:02:57]} 21. Nb6 {[%emt 0:00:05]} Ra5 {[%emt 0:09:44]} 22. Bxc5 {[%emt 0:01:15]} bxa4 {[%emt 0:00:25]} 23. Nxa4 {[%emt 0:03:14]} Rda8 {[%emt 0:00:25]} 24. b3 {[%emt 0:02:59]} Bxa1 {[%emt 0:23:03]} 0-1

[Event "50th La Roda Open 2024"]
[Site "La Roda"]
[Date "2024.03.27"]
[Round "1.14"]
[White "Cruz Lledo, Pablo"]
[Black "Garcia Galeote, Lorenzo"]
[Result "1-0"]
[ECO "D00"]
[WhiteElo "2353"]
[BlackElo "1860"]
[Annotator "RC"]
[PlyCount "59"]
[EventDate "2024.03.27"]
[EventType "swiss"]
[EventCountry "ESP"]
[SourceTitle "playchess.com"]
[Source "ChessBase"]
[SourceQuality "1"]
[TimeControl "5400+30"]

1. d4 {[%emt 0:00:13]} d5 {[%emt 0:00:08]} 2. Bf4 {[%emt 0:00:06]} Nf6 {[%emt 0:00:07]} 3. e3 {[%emt 0:00:06]} c5 {[%emt 0:00:10]} 4. c3 {[%emt 0:00:10]} Nc6 {[%emt 0:00:06]} 5. Nd2 {[%emt 0:00:06]} Qb6 {[%emt 0:00:11]} 6. Qb3 {[%emt 0:00:15]} c4 {[%emt 0:00:14]} 7. Qc2 {[%emt 0:00:09]} g6 {[%emt 0:00:29]} 8. e4 {[%emt 0:00:05]} Nxe4 {[%emt 0:01:46]} 9. Nxe4 {[%emt 0:00:08]} dxe4 {[%emt 0:01:57]} 10. Bxc4 {[%emt 0:01:39]} Bg7 {[%emt 0:01:42]} 11. Be3 {[%emt 0:02:04]} Na5 {[%emt 0:03:01]} 12. Be2 {[%emt 0:08:39]} Qc7 {[%emt 0:05:52]} 13. Qxe4 {[%emt 0:05:06]} O-O {[%emt 0:00:59]} 14. Nf3 {[%emt 0:01:45]} Nc4 {[%emt 0:09:42]} 15. Bf4 {[%emt 0:01:15]} e5 {[%emt 0:01:16]} 16. Nxe5 {[%emt 0:06:31]} Nxe5 {[%emt 0:10:32]} 17. Bxe5 {[%emt 0:00:41]} Qe7 {[%emt 0:07:09]} 18. Qe3 {[%emt 0:01:59]} f6 {[%emt 0:05:10]} 19. Bf4 {[%emt 0:00:07]} Qf7 {[%emt 0:01:14]} 20. O-O {[%emt 0:00:34]} Re8 {[%emt 0:03:20]} 21. Qd2 {[%emt 0:01:46]} a6 {[%emt 0:04:34]} 22. Rfe1 {[%emt 0:00:23]} Be6 {[%emt 0:00:43]} 23. b3 {[%emt 0:00:09]} g5 {[%emt 0:01:28]} 24. Bg3 {[%emt 0:00:22]} Rac8 {[%emt 0:01:08]} 25. Rad1 {[%emt 0:00:48]} b5 {[%emt 0:01:06]} 26. d5 {[%emt 0:00:27]} Bd7 {[%emt 0:01:46]} 27. c4 {[%emt 0:00:36]} h5 {[%emt 0:03:26]} 28. Bd6 {[%emt 0:01:05]} bxc4 {[%emt 0:01:34]} 29. bxc4 {[%emt 0:00:28]} Bf5 {[%emt 0:02:28]} 30. c5 {[%emt 0:00:25]} 1-0

[Event "50th La Roda Open 2024"]
[Site "La Roda"]
[Date "2024.03.27"]
[Round "1.15"]
[White "Vieira, Daniel"]
[Black "Martinez Reyes, Pedro Ramon"]
[Result "0-1"]
[ECO "B51"]
[WhiteElo "1856"]
[BlackElo "2332"]
[Annotator "RC"]
[PlyCount "74"]
[EventDate "2024.03.27"]
[EventType "swiss"]
[EventCountry "ESP"]
[SourceTitle "playchess.com"]
[Source "ChessBase"]
[SourceQuality "1"]
[TimeControl "5400+30"]

1. e4 {[%emt 0:00:03]} c5 {[%emt 0:00:39]} 2. Nf3 {[%emt 0:00:09]} Nc6 {[%emt 0:00:06]} 3. Bb5 {[%emt 0:01:08]} d6 {[%emt 0:00:06]} 4. Bxc6+ {[%emt 0:02:04]} bxc6 {[%emt 0:00:04]} 5. O-O {[%emt 0:02:04]} e5 {[%emt 0:00:11]} 6. c3 {[%emt 0:01:48]} Ne7 {[%emt 0:01:47]} 7. d4 {[%emt 0:02:49]} cxd4 {[%emt 0:00:06]} 8. cxd4 {[%emt 0:00:11]} f6 {[%emt 0:00:09]} 9. Nc3 {[%emt 0:04:10]} Ng6 {[%emt 0:03:59]} 10. Be3 {[%emt 0:03:49]} Be7 {[%emt 0:05:13]} 11. Rc1 {[%emt 0:05:17]} O-O {[%emt 0:06:10]} 12. Qb3+ {[%emt 0:05:53]} Kh8 {[%emt 0:00:51]} 13. h3 {[%emt 0:01:58]} Bd7 {[%emt 0:15:24]} 14. Rfd1 {[%emt 0:03:18]} Rb8 {[%emt 0:03:24]} 15. Qc2 {[%emt 0:00:38]} h6 {[%emt 0:02:50]} 16. Qd2 {[%emt 0:06:08]} Kh7 {[%emt 0:01:10]} 17. Ne2 {[%emt 0:02:28]} Rb5 {[%emt 0:23:34]} 18. Ng3 {[%emt 0:04:28]} Qb8 {[%emt 0:05:54]} 19. Rc2 {[%emt 0:02:28]} d5 {[%emt 0:03:27]} 20. a4 {[%emt 0:05:49]} Rb4 {[%emt 0:01:32]} 21. exd5 {[%emt 0:01:44]} cxd5 {[%emt 0:00:27]} 22. Rdc1 {[%emt 0:00:40]} e4 {[%emt 0:01:01]} 23. Nh2 {[%emt 0:00:55]} f5 {[%emt 0:04:23]} 24. Rc7 {[%emt 0:03:20]} Rxb2 {[%emt 0:01:47]} 25. Qd1 {[%emt 0:01:20]} Rb7 {[%emt 0:00:17]} 26. Rxb7 {[%emt 0:03:41]} Qxb7 {[%emt 0:00:06]} 27. Nh5 {[%emt 0:01:39]} Bd6 {[%emt 0:01:24]} 28. g3 {[%emt 0:02:02]} f4 {[%emt 0:01:28]} 29. Nxf4 {[%emt 0:01:56]} Nxf4 {[%emt 0:00:21]} 30. gxf4 {[%emt 0:00:51]} Bxf4 {[%emt 0:00:10]} 31. Bxf4 {[%emt 0:05:41]} Rxf4 {[%emt 0:00:02]} 32. Ng4 {[%emt 0:00:17]} Bxg4 {[%emt 0:00:36]} 33. hxg4 {[%emt 0:00:08]} Qd7 {[%emt 0:00:24]} 34. Rc5 {[%emt 0:01:47]} Rxg4+ {[%emt 0:00:11]} 35. Kf1 {[%emt 0:00:56]} Rg5 {[%emt 0:02:32]} 36. Qc2 {[%emt 0:01:43]} Qh3+ {[%emt 0:00:22]} 37. Ke2 {[%emt 0:01:13]} Qf3+ {[%emt 0:00:19]} 0-1

[Event "50th La Roda Open 2024"]
[Site "La Roda"]
[Date "2024.03.27"]
[Round "1.16"]
[White "Buendia Pinar, Alvaro"]
[Black "Santos, Isabel Pereira Dos"]
[Result "1-0"]
[ECO "D15"]
[WhiteElo "2331"]
[BlackElo "1845"]
[Annotator "RC"]
[PlyCount "51"]
[EventDate "2024.03.27"]
[EventType "swiss"]
[EventCountry "ESP"]
[SourceTitle "playchess.com"]
[Source "ChessBase"]
[SourceQuality "1"]
[TimeControl "5400+30"]

1. d4 {[%emt 0:00:34]} d5 {[%emt 0:00:04]} 2. c4 {[%emt 0:00:36]} c6 {[%emt 0:00:04]} 3. Nc3 {[%emt 0:00:38]} Nf6 {[%emt 0:01:11]} 4. Nf3 {[%emt 0:00:45]} a6 {[%emt 0:02:26]} 5. e3 {[%emt 0:01:27]} Bg4 {[%emt 0:02:54]} 6. Qb3 {[%emt 0:00:31]} Ra7 {[%emt 0:05:10]} 7. Ne5 {[%emt 0:01:50]} Bf5 {[%emt 0:09:40]} 8. Be2 {[%emt 0:03:21]} e6 {[%emt 0:01:38]} 9. f3 {[%emt 0:11:19]} dxc4 {[%emt 0:10:43]} 10. Bxc4 {[%emt 0:00:17]} b5 {[%emt 0:00:06]} 11. Be2 {[%emt 0:00:15]} Be7 {[%emt 0:00:23]} 12. g4 {[%emt 0:04:31]} Bg6 {[%emt 0:00:27]} 13. h4 {[%emt 0:01:05]} b4 {[%emt 0:20:01]} 14. Na4 {[%emt 0:01:54]} Qa5 {[%emt 0:03:16]} 15. Nc4 {[%emt 0:01:35]} Qc7 {[%emt 0:02:39]} 16. h5 {[%emt 0:10:07]} Qg3+ {[%emt 0:02:04]} 17. Kd1 {[%emt 0:00:30]} Be4 {[%emt 0:00:50]} 18. fxe4 {[%emt 0:00:47]} Nxe4 {[%emt 0:00:08]} 19. Rf1 {[%emt 0:00:31]} Qg2 {[%emt 0:03:00]} 20. Nd2 {[%emt 0:03:14]} Ng3 {[%emt 0:09:19]} 21. Bf3 {[%emt 0:00:39]} Qh2 {[%emt 0:01:09]} 22. Re1 {[%emt 0:00:15]} Qf2 {[%emt 0:01:32]} 23. e4 {[%emt 0:03:13]} Qxd4 {[%emt 0:01:31]} 24. Qe3 {[%emt 0:00:08]} Qxe3 {[%emt 0:13:20]} 25. Rxe3 {[%emt 0:00:11]} Rb7 {[%emt 0:00:03]} 26. Bg2 {[%emt 0:00:50]} 1-0

[Event "50th La Roda Open 2024"]
[Site "La Roda"]
[Date "2024.03.28"]
[Round "2.1"]
[White "Aravindh, Chithambaram VR."]
[Black "Gomez Jurado, Luis Alberto"]
[Result "1-0"]
[ECO "B12"]
[WhiteElo "2662"]
[BlackElo "2113"]
[Annotator "TA"]
[PlyCount "65"]
[EventDate "2024.03.27"]
[EventType "swiss"]
[EventCountry "ESP"]
[SourceTitle "playchess.com"]
[Source "ChessBase"]
[SourceQuality "1"]
[TimeControl "5400+30"]

{[%evp 11,65,19,17,2,14,31,24,30,28,18,72,51,59,49,157,141,101,50,64,87,87,54,62,9,23,-10,52,0,100,103,285,285,429,431,429,428,401,403,457,449,462,456,589,587,614,616,668,676,644,600,738,728,785,780,1294,1279]} 1. e4 {[%emt 0:00:02]} c6 {[%emt 0:00:41]} 2. d4 {[%emt 0:00:11]} d5 {[%emt 0:00:04]} 3. e5 {[%emt 0:00:29]} Bf5 {[%emt 0:00:08]} 4. h4 {[%emt 0:00:09]} h5 {[%emt 0:00:38]} 5. Bd3 {[%emt 0:00:31]} Bxd3 {[%emt 0:00:08]} 6. Qxd3 {[%emt 0:00:06]} e6 {[%emt 0:00:24]} 7. Bg5 {[%emt 0:00:45]} Qa5+ {[%emt 0:00:10]} 8. Nd2 {[%emt 0:00:36]} Qa6 {[%emt 0:00:06]} 9. c4 {[%emt 0:01:52] White has an edge.} Bb4 {[%emt 0:01:00]} 10. b3 {[%emt 0:01:43]} Bxd2+ {[%emt 0:14:48]} (10... Ne7 $11) 11. Qxd2 $16 {[%emt 0:10:48]} dxc4 {[%emt 0:01:05]} 12. Ne2 {[%emt 0:00:05]} f6 {[%emt 0:12:59]} (12... cxb3 13. O-O $16) (12... Nh6 $14) 13. exf6 {[%emt 0:15:00]} gxf6 {[%emt 0:00:08] Black is weak on the dark squares} 14. Bf4 {[%emt 0:00:08]} (14. Nf4 $16 Kf7 15. O-O) 14... Ne7 $14 {[%emt 0:05:54]} (14... cxb3 15. O-O b2 16. Qxb2 $16) 15. O-O {[%emt 0:00:40][%mdl 1024] White has compensation. White is more active.} Nd7 {[%emt 0:02:16]} 16. Ng3 {[%emt 0:21:53] And now Rfe1 would win.} O-O-O {[%emt 0:17:49]} 17. Ne4 {[%emt 0:09:26]} (17. Rfe1 $14 Nc5 18. Qc2) 17... Nf5 $11 {[%emt 0:01:11]} 18. Bh2 {[%emt 0:00:38] [#]} Ne5 $1 {[%emt 0:08:23]} 19. Nxf6 $14 {[%emt 0:03:05]} Nxd4 {[%emt 0:02:55] [#]} (19... Rxd4 $2 20. Qe2 Nd7 21. Nxd7 (21. Nxh5 $2 Rxh4 22. g4 Nd4 $19) (21. Qxe6 c5 $18) 21... Kxd7 22. Be5 $18) (19... Nd3 $11 {keeps the balance.}) 20. Qe3 $1 $40 {[%emt 0:01:40][%mdl 128] White has strong attack.} (20. Bxe5 $2 Nf3+ 21. gxf3 Rxd2 $19) 20... Nd3 {[%emt 0:00:42] Black cannot hold the game after this.} (20... Nf7 $16 {was worth a try.}) 21. Rad1 $18 {[%emt 0:05:38]} c5 {[%emt 0:18:40] [#]} (21... b6 $142 22. bxc4 Qxc4 23. Rxd3 Nf3+ 24. Qxf3 Rxd3) 22. Rxd3 $1 {[%emt 0:00:57][%mdl 512]} cxd3 {[%emt 0:00:06]} 23. Qe5 $1 {[%emt 0:00:05][%csl LRc5,LRh5]} Qd6 {[%emt 0:00:03]} 24. Qxd6 {[%emt 0:00:07]} Rxd6 {[%emt 0:00:07]} 25. Bxd6 {[%emt 0:00:04] White is clearly winning.} Rd8 {[%emt 0:04:06]} 26. Ne4 {[%emt 0:01:53]} ({Weaker is} 26. Bxc5 Ne2+ 27. Kh2 d2 28. Nxh5 (28. Rd1 Nc3 $15) 28... b6 $18) 26... b5 {[%emt 0:04:34]} 27. Bxc5 {[%emt 0:00:37]} Ne2+ {[%emt 0:01:00]} 28. Kh2 {[%emt 0:00:11]} b4 {[%emt 0:00:27]} 29. Nd6+ {[%emt 0:01:19]} Kc7 {[%emt 0:00:44]} 30. Rd1 {[%emt 0:00:48]} Kc6 {[%emt 0:00:41]} 31. Bxb4 {[%emt 0:01:21]} a5 {[%emt 0:03:04]} 32. Ba3 {[%emt 0:00:07]} ({Not} 32. Bxa5 Rxd6 33. Bd2 Rd5 $18) 32... Nc3 {[%emt 0:00:20]} 33. Rc1 {[%emt 0:00:29] Weighted Error Value: White=0.10 (very precise) /Black=0.49.  Loses game:     	---       	Black=1      Mistake:       	White=2     	Black=5      Inaccurate:     	White=2     	---        OK:         	White=10    	Black=5      Best:        	White=2     	Black=1      Strong:       	White=1     	---        Brilliant:      	White=1     	---} 1-0